[Event "*** Titled Tuesday Blitz"]
[Site "Chess.com"]
[Date "2021.04.27"]
[Round "8"]
[White "enriquetejedor"]
[Black "NiranjanNavalgund"]
[Result "1-0"]
[WhiteElo "2602"]
[BlackElo "2475"]
[TimeControl "180+1"]
[EndTime "11:28:46 PDT"]
[Termination "enriquetejedor won by resignation"]

1. e4 {[%clk 0:03:00.9]} 1... e5 {[%clk 0:02:59]} 2. d3 {[%clk 0:03:01.1]} 2...
Nf6 {[%clk 0:02:58.1]} 3. Nf3 {[%clk 0:03:01.8]} 3... Nc6 {[%clk 0:02:58]} 4.
Be2 {[%clk 0:03:02.4]} 4... d5 {[%clk 0:02:57.1]} 5. Nbd2 {[%clk 0:03:02.9]}
5... g5 {[%clk 0:02:57.2]} 6. O-O {[%clk 0:02:40.2]} 6... g4 {[%clk 0:02:54]} 7.
Ne1 {[%clk 0:02:40.4]} 7... Bc5 {[%clk 0:02:52.2]} 8. c3 {[%clk 0:02:36.5]} 8...
Rg8 {[%clk 0:02:46.3]} 9. b4 {[%clk 0:02:33.2]} 9... Bb6 {[%clk 0:02:46.4]} 10.
a4 {[%clk 0:02:31.8]} 10... a6 {[%clk 0:02:46]} 11. Nc2 {[%clk 0:02:09.3]} 11...
Be6 {[%clk 0:02:34.5]} 12. Ne3 {[%clk 0:01:59.1]} 12... h5 {[%clk 0:02:22.6]}
13. exd5 {[%clk 0:01:22]} 13... Nxd5 {[%clk 0:02:20.1]} 14. Nxd5 {[%clk
0:01:20.5]} 14... Bxd5 {[%clk 0:02:17.9]} 15. Nc4 {[%clk 0:01:18.3]} 15... Ba7
{[%clk 0:02:13.2]} 16. b5 {[%clk 0:01:10.5]} 16... g3 {[%clk 0:02:06.9]} 17. Bf3
{[%clk 0:00:44.8]} 17... Bxf2+ {[%clk 0:01:41.5]} 18. Kh1 {[%clk 0:00:41.4]}
18... Qh4 {[%clk 0:01:21.9]} 19. h3 {[%clk 0:00:41.1]} 19... Be6 {[%clk
0:01:00.3]} 20. Rxf2 {[%clk 0:00:30.1]} 20... Bxh3 {[%clk 0:00:57.1]} 21. Rfa2
{[%clk 0:00:09.4]} 21... Be6+ {[%clk 0:00:29.5]} 22. Kg1 {[%clk 0:00:09]} 22...
Bxc4 {[%clk 0:00:29.2]} 23. dxc4 {[%clk 0:00:05.5]} 23... Rd8 {[%clk 0:00:29.6]}
24. Rd2 {[%clk 0:00:03.1]} 24... Rxd2 {[%clk 0:00:25.9]} 25. Bxd2 {[%clk
0:00:03.7]} 25... e4 {[%clk 0:00:23.8]} 26. bxc6 {[%clk 0:00:02.6]} 26... exf3
{[%clk 0:00:23]} 27. Qxf3 {[%clk 0:00:02.7]} 27... Qh2+ {[%clk 0:00:20.5]} 28.
Kf1 {[%clk 0:00:02.9]} 28... Qh1+ {[%clk 0:00:20.9]} 29. Ke2 {[%clk 0:00:03.4]}
29... Qxa1 {[%clk 0:00:21.1]} 30. cxb7 {[%clk 0:00:03.4]} 30... Qb1 {[%clk
0:00:21.2]} 31. Qe3+ {[%clk 0:00:02.7]} 31... Kf8 {[%clk 0:00:21.3]} 32. Qa7
{[%clk 0:00:02.9]} 32... Kg7 {[%clk 0:00:20.7]} 33. Qd4+ {[%clk 0:00:02.6]}
33... Kh7 {[%clk 0:00:20.9]} 34. Qd3+ {[%clk 0:00:02]} 34... Qxd3+ {[%clk
0:00:20]} 35. Kxd3 {[%clk 0:00:02.9]} 35... Rb8 {[%clk 0:00:20]} 36. Bf4 {[%clk
0:00:03]} 36... Rxb7 {[%clk 0:00:20.4]} 37. Bxg3 {[%clk 0:00:03.6]} 37... Rb2
{[%clk 0:00:20.4]} 38. Bxc7 {[%clk 0:00:03.2]} 38... Rxg2 {[%clk 0:00:20.2]} 39.
c5 {[%clk 0:00:03.9]} 39... Rg6 {[%clk 0:00:19.6]} 40. Bd6 {[%clk 0:00:03]}
40... h4 {[%clk 0:00:19.6]} 41. Kd4 {[%clk 0:00:03.4]} 41... h3 {[%clk
0:00:19.6]} 42. Kd5 {[%clk 0:00:02.1]} 42... Rg5+ {[%clk 0:00:18.4]} 43. Kc4
{[%clk 0:00:02.1]} 43... Rg2 {[%clk 0:00:15.2]} 44. c6 {[%clk 0:00:02.4]} 44...
Rg6 {[%clk 0:00:15.5]} 45. Kc5 {[%clk 0:00:02.2]} 45... Rg5+ {[%clk 0:00:15.4]}
46. Kb6 {[%clk 0:00:02.3]} 46... Rd5 {[%clk 0:00:15.5]} 47. Bf4 {[%clk
0:00:02.2]} 47... Rd3 {[%clk 0:00:15.6]} 48. c7 {[%clk 0:00:02]} 48... Rxc3
{[%clk 0:00:15.8]} 49. Kb7 {[%clk 0:00:02.6]} 49... Rc4 {[%clk 0:00:15.4]} 50.
Bh2 {[%clk 0:00:02.3]} 50... a5 {[%clk 0:00:14.5]} 51. c8=Q {[%clk 0:00:02.2]}
51... Rxc8 {[%clk 0:00:14.2]} 52. Kxc8 {[%clk 0:00:03.1]} 52... Kg6 {[%clk
0:00:14.4]} 53. Kb7 {[%clk 0:00:03.7]} 53... Kf5 {[%clk 0:00:14.4]} 54. Kb6
{[%clk 0:00:04.6]} 54... Ke4 {[%clk 0:00:14.6]} 55. Kxa5 {[%clk 0:00:05.2]}
55... f5 {[%clk 0:00:15.1]} 56. Kb4 {[%clk 0:00:02.6]} 56... Kf3 {[%clk
0:00:15.6]} 57. a5 {[%clk 0:00:02.6]} 57... Kg2 {[%clk 0:00:15.5]} 58. Be5
{[%clk 0:00:02.2]} 58... Kf3 {[%clk 0:00:15.9]} 59. a6 {[%clk 0:00:02.2]} 59...
f4 {[%clk 0:00:16.1]} 60. Bxf4 {[%clk 0:00:02.6]} 60... Kxf4 {[%clk 0:00:16.2]}
61. a7 {[%clk 0:00:03.1]} 61... h2 {[%clk 0:00:15.8]} 62. a8=Q {[%clk
0:00:03.8]} 62... Kg3 {[%clk 0:00:16.4]} 63. Qh1 {[%clk 0:00:04.3]} 63... Kh3
{[%clk 0:00:16.9]} 64. Kc3 {[%clk 0:00:05.2]} 64... Kg3 {[%clk 0:00:17.3]} 65.
Kd3 {[%clk 0:00:06.1]} 65... Kf2 {[%clk 0:00:17.7]} 66. Qxh2+ {[%clk 0:00:05.7]}
66... Kf3 {[%clk 0:00:18.3]} 67. Qg1 {[%clk 0:00:04.6]} 67... Kf4 {[%clk
0:00:18.5]} 68. Qg6 {[%clk 0:00:05.3]} 68... Ke5 {[%clk 0:00:18.1]} 69. Qe4+
{[%clk 0:00:04.1]} 69... Kf6 {[%clk 0:00:18.3]} 70. Kd4 {[%clk 0:00:05]} 70...
Kg7 {[%clk 0:00:18.2]} 71. Qf5 {[%clk 0:00:05.1]} 71... Kh8 {[%clk 0:00:18.4]}
72. Ke5 {[%clk 0:00:06]} 72... Kg7 {[%clk 0:00:18.5]} 73. Ke6 {[%clk 0:00:06.4]}
73... Kh8 {[%clk 0:00:19.4]} 74. Qg4 {[%clk 0:00:06]} 1-0

[Event "*** Titled Tuesday Blitz"]
[Site "Chess.com"]
[Date "2021.04.27"]
[Round "8"]
[White "juancruzarias"]
[Black "vinniethepooh"]
[Result "1-0"]
[WhiteElo "2600"]
[BlackElo "2710"]
[TimeControl "180+1"]
[EndTime "11:28:48 PDT"]
[Termination "juancruzarias won by resignation"]

1. d4 {[%clk 0:03:00.9]} 1... Nf6 {[%clk 0:02:59.6]} 2. Nf3 {[%clk 0:03:01.3]}
2... d5 {[%clk 0:02:59.3]} 3. e3 {[%clk 0:03:01.5]} 3... c5 {[%clk 0:02:56.5]}
4. c3 {[%clk 0:03:01.4]} 4... Nc6 {[%clk 0:02:57.2]} 5. Nbd2 {[%clk 0:03:01.8]}
5... e6 {[%clk 0:02:53.9]} 6. Bd3 {[%clk 0:03:01.9]} 6... Qc7 {[%clk 0:02:46.1]}
7. O-O {[%clk 0:02:59.4]} 7... Bd7 {[%clk 0:02:44.6]} 8. Qe2 {[%clk 0:02:57.9]}
8... Rc8 {[%clk 0:02:36.7]} 9. Re1 {[%clk 0:02:52.5]} 9... Be7 {[%clk
0:02:27.2]} 10. dxc5 {[%clk 0:02:45.4]} 10... Bxc5 {[%clk 0:01:53.8]} 11. e4
{[%clk 0:02:39.7]} 11... Ng4 {[%clk 0:01:40.6]} 12. Rf1 {[%clk 0:02:38.5]} 12...
O-O {[%clk 0:01:31.5]} 13. Nb3 {[%clk 0:02:32.1]} 13... Bd6 {[%clk 0:01:02.8]}
14. h3 {[%clk 0:02:26.8]} 14... Nge5 {[%clk 0:00:58.8]} 15. Bb1 {[%clk
0:02:03.9]} 15... Nxf3+ {[%clk 0:00:55.9]} 16. Qxf3 {[%clk 0:02:04.8]} 16... Ne5
{[%clk 0:00:56.4]} 17. Qh5 {[%clk 0:02:05.1]} 17... dxe4 {[%clk 0:00:49.2]} 18.
Bxe4 {[%clk 0:02:04.1]} 18... f5 {[%clk 0:00:49.9]} 19. Bc2 {[%clk 0:02:01.2]}
19... Bb5 {[%clk 0:00:41.4]} 20. Re1 {[%clk 0:01:47.7]} 20... Rfe8 {[%clk
0:00:18.8]} 21. Nd4 {[%clk 0:01:46]} 21... Bd7 {[%clk 0:00:18]} 22. Bf4 {[%clk
0:01:38.8]} 22... Ng6 {[%clk 0:00:11.3]} 23. Bxd6 {[%clk 0:01:37.7]} 23... Qxd6
{[%clk 0:00:12.2]} 24. Rad1 {[%clk 0:01:37.4]} 24... Qc7 {[%clk 0:00:11.2]} 25.
Nf3 {[%clk 0:01:31.9]} 25... Nf4 {[%clk 0:00:06]} 26. Qh4 {[%clk 0:01:29.3]}
26... Bc6 {[%clk 0:00:06.2]} 27. Qg3 {[%clk 0:01:19.1]} 27... Bxf3 {[%clk
0:00:04.2]} 28. Qxf3 {[%clk 0:01:17.9]} 28... Rcd8 {[%clk 0:00:04.7]} 29. Bb3
{[%clk 0:01:15.9]} 29... Rxd1 {[%clk 0:00:02.3]} 30. Rxd1 {[%clk 0:01:16.8]}
30... Kf7 {[%clk 0:00:01.8]} 31. Kh1 {[%clk 0:01:13.1]} 31... g5 {[%clk
0:00:02]} 32. g3 {[%clk 0:01:11.8]} 32... Ng6 {[%clk 0:00:02.2]} 33. Qxf5+
{[%clk 0:01:08.9]} 33... Kg7 {[%clk 0:00:02.8]} 34. Qxg5 {[%clk 0:01:06.5]}
34... Qc6+ {[%clk 0:00:02.5]} 35. Kg1 {[%clk 0:01:06]} 35... Rf8 {[%clk
0:00:03.1]} 36. h4 {[%clk 0:01:03]} 36... Rf5 {[%clk 0:00:03.4]} 37. Qd8 {[%clk
0:01:01.8]} 37... Ne5 {[%clk 0:00:03.2]} 38. Qd6 {[%clk 0:00:45.1]} 38... Nf3+
{[%clk 0:00:03.1]} 39. Kh1 {[%clk 0:00:42]} 39... Qe4 {[%clk 0:00:02.3]} 40.
Qe7+ {[%clk 0:00:34.5]} 40... Rf7 {[%clk 0:00:02]} 41. Qxe6 {[%clk 0:00:32.7]}
41... Ne5+ {[%clk 0:00:02.3]} 42. Kg1 {[%clk 0:00:29.4]} 42... Nf3+ {[%clk
0:00:02.6]} 43. Kf1 {[%clk 0:00:17.3]} 43... Nh2+ {[%clk 0:00:02.7]} 44. Kg1
{[%clk 0:00:17.8]} 44... Nf3+ {[%clk 0:00:03]} 45. Kg2 {[%clk 0:00:18.7]} 45...
Ne5+ {[%clk 0:00:03.2]} 46. f3 {[%clk 0:00:09.5]} 46... Qxf3+ {[%clk 0:00:03]}
47. Kh2 {[%clk 0:00:10.1]} 47... Qe2+ {[%clk 0:00:02.6]} 48. Kh3 {[%clk
0:00:09.8]} 48... Rf6 {[%clk 0:00:03.2]} 49. Qe7+ {[%clk 0:00:06.2]} 49... Kg6
{[%clk 0:00:03.7]} 50. Qe8+ {[%clk 0:00:05.3]} 50... Kh6 {[%clk 0:00:04.1]} 51.
Qc8 {[%clk 0:00:02.3]} 51... Qg4+ {[%clk 0:00:03.6]} 52. Qxg4 {[%clk 0:00:01.5]}
52... Nxg4 {[%clk 0:00:04.5]} 53. Kxg4 {[%clk 0:00:02.4]} 53... Rf2 {[%clk
0:00:05.4]} 54. Kh3 {[%clk 0:00:03.3]} 54... Rxb2 {[%clk 0:00:06.3]} 55. Rd6+
{[%clk 0:00:03.8]} 55... Kg7 {[%clk 0:00:07.1]} 56. Rd5 {[%clk 0:00:04.4]} 56...
b6 {[%clk 0:00:08]} 57. Rd7+ {[%clk 0:00:04.9]} 57... Kf6 {[%clk 0:00:08.9]} 58.
Rxa7 {[%clk 0:00:05.8]} 58... h5 {[%clk 0:00:07.1]} 59. Rb7 {[%clk 0:00:06.3]}
59... Kf5 {[%clk 0:00:07.1]} 60. Rxb6 {[%clk 0:00:06.7]} 60... Ke4 {[%clk
0:00:08]} 61. Rb4+ {[%clk 0:00:06.9]} 61... Kf3 {[%clk 0:00:08]} 62. Rf4+ {[%clk
0:00:06.8]} 62... Ke3 {[%clk 0:00:08.3]} 63. c4 {[%clk 0:00:07.7]} 63... Rb1
{[%clk 0:00:06.2]} 64. c5 {[%clk 0:00:07.6]} 64... Rg1 {[%clk 0:00:06.4]} 65. c6
{[%clk 0:00:06.1]} 65... Kd3 {[%clk 0:00:06.8]} 66. c7 {[%clk 0:00:05.8]} 66...
Rc1 {[%clk 0:00:07.1]} 67. Rc4 {[%clk 0:00:06.3]} 67... Rh1+ {[%clk 0:00:03.8]}
68. Kg2 {[%clk 0:00:06]} 1-0

[Event "*** Titled Tuesday Blitz"]
[Site "Chess.com"]
[Date "2021.04.27"]
[Round "8"]
[White "TokChess"]
[Black "Chessbard1972"]
[Result "1-0"]
[WhiteElo "2394"]
[BlackElo "2251"]
[TimeControl "180+1"]
[EndTime "11:29:00 PDT"]
[Termination "TokChess won by checkmate"]

1. e4 {[%clk 0:03:00.9]} 1... c5 {[%clk 0:02:59.9]} 2. Nf3 {[%clk 0:02:56]} 2...
a6 {[%clk 0:02:59.8]} 3. c3 {[%clk 0:02:53.5]} 3... d5 {[%clk 0:02:55.8]} 4.
exd5 {[%clk 0:02:52.1]} 4... Qxd5 {[%clk 0:02:56.3]} 5. d4 {[%clk 0:02:52.9]}
5... Nf6 {[%clk 0:02:56.8]} 6. Nbd2 {[%clk 0:02:52.6]} 6... cxd4 {[%clk
0:02:54.9]} 7. Bc4 {[%clk 0:02:51.9]} 7... Qd8 {[%clk 0:02:54.4]} 8. Nxd4 {[%clk
0:02:43.6]} 8... e6 {[%clk 0:02:47.6]} 9. O-O {[%clk 0:02:43.5]} 9... Be7 {[%clk
0:02:44.6]} 10. Re1 {[%clk 0:02:43.2]} 10... O-O {[%clk 0:02:44.3]} 11. N2f3
{[%clk 0:02:42]} 11... b5 {[%clk 0:02:42.6]} 12. Bb3 {[%clk 0:02:40.6]} 12...
Bb7 {[%clk 0:02:42.3]} 13. Qe2 {[%clk 0:02:32]} 13... Bd5 {[%clk 0:02:41.9]} 14.
Bg5 {[%clk 0:02:23.2]} 14... Bxb3 {[%clk 0:02:39.9]} 15. axb3 {[%clk 0:02:22.4]}
15... Qd5 {[%clk 0:02:29.7]} 16. c4 {[%clk 0:02:12.6]} 16... bxc4 {[%clk
0:02:19.6]} 17. bxc4 {[%clk 0:02:13.5]} 17... Qb7 {[%clk 0:02:17.2]} 18. Nxe6
{[%clk 0:02:10.4]} 18... fxe6 {[%clk 0:02:16.8]} 19. Qxe6+ {[%clk 0:02:11]}
19... Rf7 {[%clk 0:02:16.6]} 20. Ne5 {[%clk 0:02:09.9]} 20... Bf8 {[%clk
0:02:15]} 21. Re3 {[%clk 0:01:33]} 21... Qe7 {[%clk 0:02:13.1]} 22. Nxf7 {[%clk
0:01:16.4]} 22... Qxf7 {[%clk 0:02:12.3]} 23. Bxf6 {[%clk 0:01:14.5]} 23... Qxe6
{[%clk 0:02:02.5]} 24. Rxe6 {[%clk 0:01:15.4]} 24... Kf7 {[%clk 0:02:01.4]} 25.
Rb6 {[%clk 0:01:10.9]} 25... gxf6 {[%clk 0:02:00.5]} 26. b4 {[%clk 0:01:08.8]}
26... Nd7 {[%clk 0:01:59.2]} 27. Rbxa6 {[%clk 0:00:57.6]} 27... Rxa6 {[%clk
0:01:56.1]} 28. Rxa6 {[%clk 0:00:58.5]} 28... Bxb4 {[%clk 0:01:56.1]} 29. f4
{[%clk 0:00:50.1]} 29... f5 {[%clk 0:01:50.4]} 30. Kf1 {[%clk 0:00:48.2]} 30...
Bc5 {[%clk 0:01:42.3]} 31. Rc6 {[%clk 0:00:43.3]} 31... Be3 {[%clk 0:01:35.8]}
32. g3 {[%clk 0:00:40.8]} 32... Nf6 {[%clk 0:01:34.2]} 33. Ke2 {[%clk
0:00:36.1]} 33... Bg1 {[%clk 0:01:31.9]} 34. h3 {[%clk 0:00:31.4]} 34... Ne4
{[%clk 0:01:31]} 35. Kf3 {[%clk 0:00:23.6]} 35... h5 {[%clk 0:01:26.3]} 36. g4
{[%clk 0:00:19.2]} 36... h4 {[%clk 0:01:16]} 37. gxf5 {[%clk 0:00:15.3]} 37...
Nf6 {[%clk 0:01:15.6]} 38. Rc7+ {[%clk 0:00:14.2]} 38... Kg8 {[%clk 0:01:15.1]}
39. Rc6 {[%clk 0:00:13.9]} 39... Kf7 {[%clk 0:01:11.3]} 40. Rc7+ {[%clk
0:00:13.4]} 40... Kf8 {[%clk 0:01:10]} 41. c5 {[%clk 0:00:14]} 41... Ke8 {[%clk
0:01:01.2]} 42. c6 {[%clk 0:00:13.1]} 42... Nd5 {[%clk 0:00:52.3]} 43. Rh7
{[%clk 0:00:11.5]} 43... Bb6 {[%clk 0:00:48.9]} 44. Rxh4 {[%clk 0:00:09.5]}
44... Bc7 {[%clk 0:00:47.3]} 45. Rh8+ {[%clk 0:00:08.2]} 45... Ke7 {[%clk
0:00:45.2]} 46. Rh7+ {[%clk 0:00:06.9]} 46... Kd6 {[%clk 0:00:43.9]} 47. Rg7
{[%clk 0:00:05.4]} 47... Kxc6 {[%clk 0:00:43.3]} 48. Rg6+ {[%clk 0:00:05.7]}
48... Kd7 {[%clk 0:00:42.5]} 49. h4 {[%clk 0:00:04.6]} 49... Ke7 {[%clk
0:00:41.4]} 50. h5 {[%clk 0:00:04.5]} 50... Nf6 {[%clk 0:00:41.3]} 51. h6 {[%clk
0:00:04.2]} 51... Bd8 {[%clk 0:00:31.8]} 52. h7 {[%clk 0:00:03.8]} 52... Nxh7
{[%clk 0:00:29.7]} 53. Rg7+ {[%clk 0:00:04.3]} 53... Kf6 {[%clk 0:00:29.4]} 54.
Rxh7 {[%clk 0:00:05.2]} 54... Ba5 {[%clk 0:00:28.9]} 55. Ke4 {[%clk 0:00:04.4]}
55... Bc3 {[%clk 0:00:28.4]} 56. Rb7 {[%clk 0:00:05.3]} 56... Ba1 {[%clk
0:00:27.6]} 57. Rb6+ {[%clk 0:00:05.6]} 57... Kf7 {[%clk 0:00:27.9]} 58. Ra6
{[%clk 0:00:05.4]} 58... Bb2 {[%clk 0:00:27.4]} 59. Rc6 {[%clk 0:00:05.3]} 59...
Ba1 {[%clk 0:00:26.9]} 60. Rc7+ {[%clk 0:00:05.7]} 60... Kf6 {[%clk 0:00:26.4]}
61. Rc6+ {[%clk 0:00:06.6]} 61... Kf7 {[%clk 0:00:26.5]} 62. Kf3 {[%clk
0:00:07.1]} 62... Bb2 {[%clk 0:00:25.2]} 63. Kg4 {[%clk 0:00:06.9]} 63... Ba1
{[%clk 0:00:22]} 64. Kg5 {[%clk 0:00:06.6]} 64... Bb2 {[%clk 0:00:21.4]} 65.
Rc7+ {[%clk 0:00:06.4]} 65... Kf8 {[%clk 0:00:20.6]} 66. Rb7 {[%clk 0:00:06.4]}
66... Bc3 {[%clk 0:00:19.1]} 67. Kg6 {[%clk 0:00:06.6]} 67... Bd4 {[%clk
0:00:15.9]} 68. f6 {[%clk 0:00:06.5]} 68... Ke8 {[%clk 0:00:13.5]} 69. f5 {[%clk
0:00:04.8]} 69... Bc5 {[%clk 0:00:12.4]} 70. f7+ {[%clk 0:00:04]} 70... Kf8
{[%clk 0:00:07.6]} 71. Rb8+ {[%clk 0:00:03.7]} 71... Ke7 {[%clk 0:00:07.3]} 72.
Re8+ {[%clk 0:00:04.6]} 72... Kd7 {[%clk 0:00:07.3]} 73. f8=Q {[%clk 0:00:05.1]}
73... Bxf8 {[%clk 0:00:07.9]} 74. Rxf8 {[%clk 0:00:06]} 74... Ke7 {[%clk
0:00:08.3]} 75. Rf6 {[%clk 0:00:05.6]} 75... Kd7 {[%clk 0:00:08.3]} 76. Re6
{[%clk 0:00:06.5]} 76... Kc7 {[%clk 0:00:08.3]} 77. Kg5 {[%clk 0:00:07.4]} 77...
Kb7 {[%clk 0:00:09.2]} 78. Kf4 {[%clk 0:00:08.3]} 78... Ka7 {[%clk 0:00:10]} 79.
Ke5 {[%clk 0:00:09.2]} 79... Kb7 {[%clk 0:00:10.9]} 80. f6 {[%clk 0:00:09.7]}
80... Kc7 {[%clk 0:00:11.4]} 81. f7 {[%clk 0:00:10]} 81... Kd7 {[%clk
0:00:12.3]} 82. f8=Q {[%clk 0:00:09.7]} 82... Kc7 {[%clk 0:00:13.2]} 83. Qd6+
{[%clk 0:00:09.8]} 83... Kb7 {[%clk 0:00:14.1]} 84. Qd7+ {[%clk 0:00:09.7]}
84... Ka8 {[%clk 0:00:14.1]} 85. Re8# {[%clk 0:00:10.3]} 1-0

[Event "*** Titled Tuesday Blitz"]
[Site "Chess.com"]
[Date "2021.04.27"]
[Round "8"]
[White "WuinaterJr"]
[Black "chesslh19"]
[Result "1/2-1/2"]
[WhiteElo "2493"]
[BlackElo "2274"]
[TimeControl "180+1"]
[EndTime "11:29:05 PDT"]
[Termination "Game drawn by stalemate"]

1. e4 {[%clk 0:03:00.9]} 1... e5 {[%clk 0:02:59.5]} 2. Nf3 {[%clk 0:03:00.9]}
2... Nf6 {[%clk 0:02:59.7]} 3. d4 {[%clk 0:03:00.5]} 3... exd4 {[%clk
0:02:59.6]} 4. e5 {[%clk 0:03:00.3]} 4... Ne4 {[%clk 0:03:00.2]} 5. Qxd4 {[%clk
0:02:58.5]} 5... d5 {[%clk 0:03:00.7]} 6. exd6 {[%clk 0:02:56]} 6... Nxd6 {[%clk
0:03:00.9]} 7. Be2 {[%clk 0:02:51.7]} 7... Nc6 {[%clk 0:02:59.4]} 8. Qd1 {[%clk
0:02:45.8]} 8... Be7 {[%clk 0:02:55.4]} 9. O-O {[%clk 0:02:45.3]} 9... O-O
{[%clk 0:02:52.7]} 10. Nc3 {[%clk 0:02:45.4]} 10... Nf5 {[%clk 0:02:45.9]} 11.
Bf4 {[%clk 0:02:43.9]} 11... Nfd4 {[%clk 0:02:38.3]} 12. Bd3 {[%clk 0:02:28.6]}
12... Bg4 {[%clk 0:02:21.1]} 13. Be4 {[%clk 0:01:57.7]} 13... Bh5 {[%clk
0:01:38.8]} 14. Bxc6 {[%clk 0:01:42]} 14... Nxc6 {[%clk 0:01:30.6]} 15. Qxd8
{[%clk 0:01:41.6]} 15... Rfxd8 {[%clk 0:00:57.9]} 16. Bxc7 {[%clk 0:01:40.7]}
16... Rd7 {[%clk 0:00:57.8]} 17. Bg3 {[%clk 0:01:40.1]} 17... Bxf3 {[%clk
0:00:55]} 18. gxf3 {[%clk 0:01:40.1]} 18... Nd4 {[%clk 0:00:53.3]} 19. Kg2
{[%clk 0:01:29.7]} 19... Nxc2 {[%clk 0:00:48]} 20. Rac1 {[%clk 0:01:28.4]} 20...
Nb4 {[%clk 0:00:45.7]} 21. a3 {[%clk 0:01:25.1]} 21... Nc6 {[%clk 0:00:45.2]}
22. Ne4 {[%clk 0:01:22.9]} 22... h6 {[%clk 0:00:39]} 23. Nc5 {[%clk 0:01:20]}
23... Bxc5 {[%clk 0:00:39.1]} 24. Rxc5 {[%clk 0:01:20.9]} 24... Rad8 {[%clk
0:00:39.1]} 25. Rfc1 {[%clk 0:01:16.6]} 25... Rd5 {[%clk 0:00:38.1]} 26. b4
{[%clk 0:01:15.6]} 26... Rxc5 {[%clk 0:00:37.8]} 27. Rxc5 {[%clk 0:01:14.7]}
27... a6 {[%clk 0:00:38.2]} 28. b5 {[%clk 0:01:12.1]} 28... axb5 {[%clk
0:00:37.9]} 29. Rxb5 {[%clk 0:01:13]} 29... Rd7 {[%clk 0:00:38.1]} 30. Rb6
{[%clk 0:01:02.3]} 30... Nd4 {[%clk 0:00:35.8]} 31. Be5 {[%clk 0:00:56.7]} 31...
Ne6 {[%clk 0:00:31.4]} 32. f4 {[%clk 0:00:45.8]} 32... g6 {[%clk 0:00:30.8]} 33.
Rb3 {[%clk 0:00:32.7]} 33... Kf8 {[%clk 0:00:22.2]} 34. Rc3 {[%clk 0:00:29.9]}
34... Ke7 {[%clk 0:00:21.9]} 35. Rb3 {[%clk 0:00:25.5]} 35... f6 {[%clk
0:00:21.1]} 36. Bb2 {[%clk 0:00:22.4]} 36... Nxf4+ {[%clk 0:00:21]} 37. Kf3
{[%clk 0:00:19.4]} 37... Rd3+ {[%clk 0:00:18.1]} 38. Rxd3 {[%clk 0:00:20]} 38...
Nxd3 {[%clk 0:00:18.3]} 39. Bd4 {[%clk 0:00:20]} 39... Ne5+ {[%clk 0:00:16.3]}
40. Ke4 {[%clk 0:00:19.5]} 40... Nc6 {[%clk 0:00:16.1]} 41. Be3 {[%clk
0:00:19.3]} 41... Ke6 {[%clk 0:00:15.9]} 42. Bxh6 {[%clk 0:00:18]} 42... Ne7
{[%clk 0:00:09.3]} 43. Bd2 {[%clk 0:00:16.5]} 43... Nf5 {[%clk 0:00:08.1]} 44.
f4 {[%clk 0:00:14.6]} 44... Nd6+ {[%clk 0:00:08]} 45. Kd3 {[%clk 0:00:14.4]}
45... Kd5 {[%clk 0:00:08.2]} 46. Bc3 {[%clk 0:00:13.5]} 46... f5 {[%clk
0:00:08.5]} 47. Be5 {[%clk 0:00:12.8]} 47... Ne4 {[%clk 0:00:08.4]} 48. h3
{[%clk 0:00:12]} 48... Nf2+ {[%clk 0:00:07.9]} 49. Kc3 {[%clk 0:00:11.4]} 49...
Nxh3 {[%clk 0:00:06.4]} 50. Bb8 {[%clk 0:00:10.6]} 50... Nf2 {[%clk 0:00:05.4]}
51. Kb4 {[%clk 0:00:10.3]} 51... Kc6 {[%clk 0:00:05.6]} 52. Kc4 {[%clk
0:00:10.5]} 52... Ne4 {[%clk 0:00:05.4]} 53. Kd4 {[%clk 0:00:11.1]} 53... g5
{[%clk 0:00:03.6]} 54. fxg5 {[%clk 0:00:05.7]} 54... Nxg5 {[%clk 0:00:04.5]} 55.
Ke5 {[%clk 0:00:06.3]} 55... Nf3+ {[%clk 0:00:04.3]} 56. Kxf5 {[%clk 0:00:06.9]}
56... Nd4+ {[%clk 0:00:04.5]} 57. Ke4 {[%clk 0:00:06.8]} 57... Nb5 {[%clk
0:00:04.3]} 58. Kd3 {[%clk 0:00:05.5]} 58... Nxa3 {[%clk 0:00:04.2]} 59. Kc3
{[%clk 0:00:06]} 59... Nb5+ {[%clk 0:00:04.4]} 60. Kb3 {[%clk 0:00:06.4]} 60...
Nd4+ {[%clk 0:00:03]} 61. Kb2 {[%clk 0:00:06.7]} 61... Ne6 {[%clk 0:00:03.5]}
62. Bh2 {[%clk 0:00:07.2]} 62... Nc5 {[%clk 0:00:03.3]} 63. Bg1 {[%clk
0:00:07.7]} 63... Kb5 {[%clk 0:00:02.1]} 64. Ka2 {[%clk 0:00:07.3]} 64... Na6
{[%clk 0:00:02]} 65. Ka3 {[%clk 0:00:07.6]} 65... Nc5 {[%clk 0:00:01.4]} 66. Kb2
{[%clk 0:00:07.9]} 66... Nd3+ {[%clk 0:00:01.4]} 67. Kc2 {[%clk 0:00:08.8]}
67... Ne5 {[%clk 0:00:01.3]} 68. Kb3 {[%clk 0:00:09.7]} 68... Nc6 {[%clk
0:00:01.4]} 69. Bf2 {[%clk 0:00:09.8]} 69... Na5+ {[%clk 0:00:01.1]} 70. Kc2
{[%clk 0:00:10.7]} 70... Nc6 {[%clk 0:00:01.8]} 71. Kb2 {[%clk 0:00:11.6]} 71...
Nb4 {[%clk 0:00:02.5]} 72. Kb3 {[%clk 0:00:11.9]} 72... Nc6 {[%clk 0:00:03.4]}
73. Kc2 {[%clk 0:00:12.2]} 73... Nb8 {[%clk 0:00:03.9]} 74. Kb3 {[%clk
0:00:12.6]} 74... Nd7 {[%clk 0:00:04.8]} 75. Kc2 {[%clk 0:00:13.1]} 75... Nc5
{[%clk 0:00:05.1]} 76. Kb2 {[%clk 0:00:12.2]} 76... Kc4 {[%clk 0:00:05.4]} 77.
Kc2 {[%clk 0:00:11.9]} 77... b5 {[%clk 0:00:05.8]} 78. Bxc5 {[%clk 0:00:11.4]}
78... Kxc5 {[%clk 0:00:06]} 79. Kc3 {[%clk 0:00:12]} 79... b4+ {[%clk
0:00:06.3]} 80. Kb3 {[%clk 0:00:12.5]} 80... Kb5 {[%clk 0:00:07.2]} 81. Kb2
{[%clk 0:00:13]} 81... Kc4 {[%clk 0:00:08.1]} 82. Kc2 {[%clk 0:00:13.4]} 82...
b3+ {[%clk 0:00:09]} 83. Kb2 {[%clk 0:00:13.8]} 83... Kb4 {[%clk 0:00:09.9]} 84.
Kb1 {[%clk 0:00:14.4]} 84... Kc3 {[%clk 0:00:10.4]} 85. Kc1 {[%clk 0:00:14.9]}
85... Kb4 {[%clk 0:00:10]} 86. Kb2 {[%clk 0:00:14.9]} 86... Ka4 {[%clk
0:00:10.4]} 87. Kb1 {[%clk 0:00:14.6]} 87... Ka3 {[%clk 0:00:11.3]} 88. Ka1
{[%clk 0:00:15]} 88... b2+ {[%clk 0:00:11.9]} 89. Kb1 {[%clk 0:00:15.5]} 89...
Kb3 {[%clk 0:00:12.8]} 1/2-1/2